{"text_format":"1","workbook":"xlsx","n_sheets":3,"sheets":["Timeliste ","Timespesifikasjon","antall timer rullegardin"],"not_rendered":{"charts":0,"images":0,"macros":0,"external_links":0,"defined_names":0,"comments":1,"pivot_tables":0},"unopened":[],"bounds":{"document_bytes":16777216,"sheet_cells":100000,"rows_first":2000,"rows_last":500,"rows_between":2000,"halvings":0,"cell_chars":16384,"cell_head_chars":4096},"cells_cut":0,"cells_raw":0,"read":"whole","date_system":"1900"}

{"sheet":"Timeliste ","index":0,"n_rows":48,"n_cols":11,"rows_kept":48,"cut":false,"hidden":false,"merged":[[9,0,9,4],[10,0,10,4],[13,0,13,4],[13,5,13,10],[15,0,15,4],[15,5,15,7],[15,8,15,10],[17,1,17,4],[17,6,17,10],[18,8,18,10],[19,0,19,1],[19,2,19,4],[19,5,19,7],[19,8,19,10],[45,0,45,2],[45,3,45,5],[45,6,45,10],[25,7,25,10],[42,1,42,2],[43,1,43,2],[43,3,43,4],[43,6,43,8],[43,9,43,10]]}
["Troms fylkeskommune"]
[" Personalsenteret - lønn"]
[" 9296 Tromsø"]
[]
[]
["Oppgjørsskjema for utbetaling av timelønn",null,null,null,null,null,null,null,"  "]
["Benyttes for utlønning til mottakere som ikke er registrert i Visma Web"]
[]
[]
["Fødsels- og personnummer(11 siffer):",null,null,null,null,"       NB! Timespesifikasjon i arkfane 2 må"]
[null,null,null,null,null,"       fylles ut."]
[]
["Navn:",null,null,null,null,"Arbeidssted:"]
[]
["Adresse:",null,null,null,null,"Skattekommune:",null,null,"Kommune nr.:"]
[]
["Postnr.:","Poststed:",null,null,null,"Trekkprosent:","Bankkonto nr.(11 siffer):"]
[]
["Stilling:",null,"Stillingskode:",null,null,"Årslønn:                                            ",null,null,"Lønnsansiennitet:"]
[]
[]
[null,null,null,null,null,"Timer pr uke",null,37.50,null,"for endring t/uke: "]
[null,null,null,null,null,null,null,null,null,"klikk på celle H 22, "]
[null,null,null,null,null,null,null,null,null,"bruk nedtrekksmeny"]
[]
[null,"Lønn-",null," Timesats",null,"Beløp",null,"Kontonummer"]
["Tekst","art","  Timer","Kr",null,"Kr",null,"Konto:","Tjeneste:","Ansvar:","Prosj.:"]
["Timelønn",110,{"$f":"Timespesifikasjon!E43","v":0},{"$f":"IF(H22=37.5,F20/1950,F20/1846)","v":0},null,{"$f":"C28*D28","v":0}]
[" Overtid  50 %",122,{"$f":"Timespesifikasjon!F43","v":0},{"$f":"(F20/1850)*1.5","v":0},null,0]
[" Overtid 100 %",123,{"$f":"Timespesifikasjon!G43","v":0},{"$f":"(F20/1850)*2","v":0},null,0]
["Overtid 133 %",124,{"$f":"Timespesifikasjon!H43","v":0},{"$f":"(F20/1850)*7/3","v":0},null,0]
["Diff. overtid 50%",125,{"$f":"Timespesifikasjon!I43","v":0},{"$f":"D29-D28","v":0},null,0]
["Diff. overtid 100%",126,{"$f":"Timespesifikasjon!J43","v":0},{"$f":"D30-D28","v":0},null,0]
["Diff. Overtid 133 %",127,{"$f":"Timespesifikasjon!K43","v":0},{"$f":"D31-D28","v":0},null,0]
["Eksamensvakt",224,{"$f":"Timespesifikasjon!L43","v":0},207,null,0]
["Pensjonistlønn ikke ped.",130,{"$f":"Timespesifikasjon!M43","v":0},201,null,0]
["Honorar",150]
["Sum brutto lønn",null,null,null,null,{"$f":"SUM(F28:F37)","v":0}]
["Skattetrekk prosent",899]
["Sum netto lønn",null,null,null,null,{"$f":"SUM(F38:F39)","v":0}]
[]
["   Anvises til utbetaling",null,null,"   Attesteres",null,null,"  Regningsutsteders underskrift"]
["  Kr"]
[]
["Sted","Dato",null,"Sted",null,"Dato","Sted",null,null,"Dato"]
[]
["                              Underskrift",null,null,"              Oppdragsgivers underskrift",null,null,null,"                Underskrift"]
["2019-01-01"]

{"sheet":"Timespesifikasjon","index":1,"n_rows":43,"n_cols":13,"rows_kept":43,"cut":false,"hidden":false,"merged":[[0,6,0,8],[0,10,0,11],[3,4,3,10]]}
["Timespesifikasjon",null,null,null,null,null,null,null,null,null," "]
[null,null,null,null,null,null,"Måned",null,null,null,"År"]
[]
[null,null,null,null,"                  A n t a l l   t i m e r"]
["Dato","Fra kl.","Til kl.","Arbeidets art/ vikar for",null,null,null,null,"Diff.","Diff.","Diff.","Eksamens-","Pensjonist-"]
[null,null,null,null,"Timer",0.50,1,1.33,0.50,1,1.33,"vakt","lønn"]
[]
[]
[]
[]
[]
[null," "," "]
[]
[]
[]
[]
[]
[]
[]
[]
[]
[]
[]
[]
[]
[]
[]
[]
[]
[]
[]
[]
[]
[]
[]
[]
[]
[]
[]
[]
[]
[]
["2019-01-01",null,null,"Sum",{"$f":"SUM(E7:E42)","v":0},0,0,0,0,0,0,{"$f":"SUM(L7:L42)","v":0},{"$f":"SUM(M7:M42)","v":0}]

{"sheet":"antall timer rullegardin","index":2,"n_rows":5,"n_cols":1,"rows_kept":5,"cut":false,"hidden":true,"merged":[]}
[]
[]
["Antall timer"]
[37.50]
[35.50]